[Event "EYCC G10-ch 2024"]
[Site "Prague"]
[Date "2024.08.30"]
[Round "8.7"]
[White "Bhaumik, Mehr"]
[Black "Tykalova, Barbora"]
[Result "1-0"]
[ECO "A45"]
[WhiteElo "1606"]
[BlackElo "1580"]
[Annotator "NA RC"]
[PlyCount "65"]
[EventDate "2024.08.19"]
[EventType "swiss"]
[EventCountry "CZE"]
[SourceTitle "playchess.com"]
[Source "ChessBase"]
[SourceQuality "1"]
[TimeControl "5400+30"]

1. d4 {[%emt 0:00:05]} Nf6 {[%emt 0:00:04]} 2. Nc3 {[%emt 0:00:12]} g6 {[%emt 0:00:05]} 3. e4 {[%emt 0:00:11]} Bg7 {[%emt 0:00:51]} 4. e5 {[%emt 0:00:49]} Ng8 {[%emt 0:00:56]} 5. Be3 {[%emt 0:00:37]} d6 {[%emt 0:00:38]} 6. exd6 {[%emt 0:02:21]} cxd6 {[%emt 0:01:18]} 7. Qd2 {[%emt 0:00:53]} a6 {[%emt 0:01:37]} 8. Bd3 {[%emt 0:04:57]} Nc6 {[%emt 0:02:06]} 9. Nge2 {[%emt 0:02:33]} Nb4 {[%emt 0:01:32]} 10. Bc4 {[%emt 0:04:56]} Bf5 {[%emt 0:02:42]} 11. Bd3 {[%emt 0:01:46]} Nxd3+ {[%emt 0:02:23]} 12. cxd3 {[%emt 0:01:30]} h6 {[%emt 0:01:33]} 13. O-O {[%emt 0:01:36]} Nf6 {[%emt 0:01:05]} 14. Rac1 {[%emt 0:01:52]} b5 {[%emt 0:06:59]} 15. f3 {[%emt 0:08:31]} h5 {[%emt 0:02:22]} 16. Ne4 {[%emt 0:04:04]} Nd5 {[%emt 0:02:04]} 17. Nf4 {[%emt 0:05:25]} Nxe3 {[%emt 0:00:49]} 18. Qxe3 {[%emt 0:02:09]} Qb6 {[%emt 0:00:03]} 19. Kh1 {[%emt 0:08:03]} Bxd4 {[%emt 0:00:57]} 20. Qe2 {[%emt 0:00:38]} Bxe4 {[%emt 0:04:44]} 21. Qxe4 {[%emt 0:03:04]} O-O {[%emt 0:01:28]} 22. Nd5 {[%emt 0:03:15]} Qa7 {[%emt 0:04:21]} 23. Rc7 {[%emt 0:00:44]} Qb8 {[%emt 0:00:30]} 24. Qxd4 {[%emt 0:00:24]} e5 {[%emt 0:05:41]} 25. Qc3 {[%emt 0:03:48]} a5 {[%emt 0:02:23]} 26. Nf6+ {[%emt 0:00:59]} Kg7 {[%emt 0:02:31]} 27. Nd7 {[%emt 0:00:11]} b4 {[%emt 0:00:59]} 28. Qc2 {[%emt 0:00:29]} Qb5 {[%emt 0:00:34]} 29. Nxf8 {[%emt 0:00:31]} Rxf8 {[%emt 0:00:13]} 30. Qc4 {[%emt 0:00:31]} Qb6 {[%emt 0:00:34]} 31. Qc6 {[%emt 0:00:18]} Qd4 {[%emt 0:00:33]} 32. Qc2 {[%emt 0:00:54]} Qb6 {[%emt 0:00:14]} 33. Rc6 {[%emt 0:00:22]} 1-0

[Event "EYCC G10-ch 2024"]
[Site "Prague"]
[Date "2024.08.30"]
[Round "8.8"]
[White "Hatuk, Neris"]
[Black "Rekhviashvili, Mariam"]
[Result "1/2-1/2"]
[ECO "C10"]
[WhiteElo "1671"]
[BlackElo "1542"]
[Annotator "NA RC"]
[PlyCount "188"]
[EventDate "2024.08.19"]
[EventType "swiss"]
[EventCountry "CZE"]
[SourceTitle "playchess.com"]
[Source "ChessBase"]
[SourceQuality "1"]
[TimeControl "5400+30"]

1. e4 {[%emt 0:00:01]} e6 {[%emt 0:00:05]} 2. d4 {[%emt 0:00:17]} d5 {[%emt 0:00:05]} 3. Nc3 {[%emt 0:00:04]} dxe4 {[%emt 0:00:06]} 4. Nxe4 {[%emt 0:00:06]} Nd7 {[%emt 0:00:07]} 5. Be3 {[%emt 0:00:39]} Ngf6 {[%emt 0:00:43]} 6. Nxf6+ {[%emt 0:00:15]} Nxf6 {[%emt 0:00:11]} 7. Qd2 {[%emt 0:00:58]} b6 {[%emt 0:01:41]} 8. Nf3 {[%emt 0:01:40]} Bb7 {[%emt 0:00:35]} 9. Ne5 {[%emt 0:00:52]} a6 {[%emt 0:01:15]} 10. f3 {[%emt 0:04:28]} Bd6 {[%emt 0:03:00]} 11. Nc4 {[%emt 0:02:17]} Be7 {[%emt 0:00:47]} 12. O-O-O {[%emt 0:01:35]} Nd5 {[%emt 0:01:33]} 13. Kb1 {[%emt 0:03:07]} c5 {[%emt 0:02:11]} 14. Be2 {[%emt 0:04:01]} Nxe3 {[%emt 0:04:17]} 15. Qxe3 {[%emt 0:00:09]} cxd4 {[%emt 0:01:16]} 16. Rxd4 {[%emt 0:00:51]} Qc7 {[%emt 0:00:55]} 17. Rg4 b5 {[%emt 0:14:01]} 18. Nd2 {[%emt 0:16:55]} Rc8 {[%emt 0:02:28]} 19. Bd3 {[%emt 0:01:28]} Bf6 {[%emt 0:01:07]} 20. Ne4 {[%emt 0:06:43]} Bxe4 {[%emt 0:03:35]} 21. Qxe4 {[%emt 0:00:16]} Qe5 {[%emt 0:01:21]} 22. Qxe5 {[%emt 0:00:11]} Bxe5 {[%emt 0:00:06]} 23. Re1 {[%emt 0:00:33]} Bf6 {[%emt 0:00:52]} 24. a4 {[%emt 0:01:30]} h5 25. Rge4 {[%emt 0:01:02]} bxa4 {[%emt 0:09:07]} 26. Rxa4 {[%emt 0:00:08]} Rb8 {[%emt 0:00:18]} 27. b3 {[%emt 0:00:09]} a5 {[%emt 0:00:08]} 28. Ree4 {[%emt 0:01:26]} Bc3 {[%emt 0:01:50]} 29. Rec4 {[%emt 0:00:18]} Bd2 {[%emt 0:00:34]} 30. c3 {[%emt 0:01:41]} Be3 {[%emt 0:02:05]} 31. Rxa5 {[%emt 0:07:56]} Rxb3+ {[%emt 0:00:31]} 32. Kc2 {[%emt 0:00:08]} Rb8 {[%emt 0:00:07]} 33. Rh4 {[%emt 0:01:23]} g6 {[%emt 0:01:02]} 34. Re4 {[%emt 0:01:12]} Bg1 {[%emt 0:00:50]} 35. h3 {[%emt 0:00:29]} O-O {[%emt 0:00:45]} 36. g4 {[%emt 0:01:39]} h4 {[%emt 0:01:34]} 37. f4 {[%emt 0:05:15]} Bb6 {[%emt 0:09:16]} 38. Rb5 {[%emt 0:02:30]} Bc7 {[%emt 0:00:22]} 39. Rxb8 {[%emt 0:01:47]} Rxb8 {[%emt 0:00:06]} 40. f5 {[%emt 0:01:31]} exf5 {[%emt 0:00:30]} 41. gxf5 {[%emt 0:00:07]} g5 {[%emt 0:00:14]} 42. Re7 {[%emt 0:04:12]} Bd8 {[%emt 0:00:49]} 43. Rd7 {[%emt 0:01:49]} f6 {[%emt 0:07:12]} 44. Bc4+ {[%emt 0:01:18]} Kf8 {[%emt 0:00:47]} 45. Be6 {[%emt 0:00:53]} Be7 {[%emt 0:02:17]} 46. c4 {[%emt 0:00:42]} Rd8 {[%emt 0:00:40]} 47. Rb7 {[%emt 0:01:06]} Ke8 {[%emt 0:01:19]} 48. Rc7 {[%emt 0:00:54]} Rb8 {[%emt 0:14:04]} 49. c5 {[%emt 0:02:03]} g4 {[%emt 0:01:33]} 50. hxg4 {[%emt 0:00:38]} h3 {[%emt 0:00:09]} 51. Bd5 {[%emt 0:00:46]} Kd8 {[%emt 0:00:42]} 52. Ra7 {[%emt 0:02:38]} h2 {[%emt 0:03:36]} 53. c6 {[%emt 0:01:40]} Rc8 {[%emt 0:01:38]} 54. Rd7+ {[%emt 0:02:30]} Ke8 {[%emt 0:00:05]} 55. Rb7 {[%emt 0:02:35]} Kd8 {[%emt 0:01:34]} 56. Rb1 {[%emt 0:00:41]} Bc5 {[%emt 0:01:28]} 57. Re1 {[%emt 0:01:49]} Kc7 {[%emt 0:01:54]} 58. Kc3 {[%emt 0:01:37]} Rd8 {[%emt 0:01:46]} 59. Bh1 {[%emt 0:01:35]} Kb6 {[%emt 0:00:52]} 60. Rb1+ {[%emt 0:00:18]} Kc7 {[%emt 0:00:24]} 61. Rb7+ {[%emt 0:01:36]} Kd6 {[%emt 0:00:22]} 62. Rh7 {[%emt 0:02:40]} Bg1 {[%emt 0:00:38]} 63. Rf7 {[%emt 0:03:56]} Ke5 {[%emt 0:01:12]} 64. Re7+ {[%emt 0:00:21]} Kd6 {[%emt 0:00:27]} 65. Re6+ {[%emt 0:00:13]} Kc7 {[%emt 0:00:03]} 66. Re2 {[%emt 0:03:22]} Rd6 {[%emt 0:00:49]} 67. Re7+ {[%emt 0:00:26]} Kc8 {[%emt 0:00:37]} 68. Re8+ {[%emt 0:03:39]} Rd8 {[%emt 0:00:20]} 69. Rxd8+ {[%emt 0:00:37]} Kxd8 {[%emt 0:00:06]} 70. Kc4 {[%emt 0:00:04]} Bb6 {[%emt 0:00:26]} 71. Kd5 {[%emt 0:00:06]} Ke7 {[%emt 0:00:25]} 72. Ke4 {[%emt 0:00:13]} Kd6 {[%emt 0:00:17]} 73. Kf4 {[%emt 0:00:16]} Bc7 {[%emt 0:00:11]} 74. g5 {[%emt 0:00:23]} Ke7+ {[%emt 0:00:36]} 75. Kg4 {[%emt 0:00:08]} Kf7 {[%emt 0:01:00]} 76. Kh5 {[%emt 0:00:49]} fxg5 {[%emt 0:00:51]} 77. Kxg5 {[%emt 0:00:04]} Bd8+ {[%emt 0:00:06]} 78. Kf4 {[%emt 0:00:08]} Kf6 {[%emt 0:00:06]} 79. Ke4 {[%emt 0:00:05]} Bc7 {[%emt 0:00:08]} 80. Bg2 {[%emt 0:00:11]} Bg3 {[%emt 0:00:16]} 81. Bf3 {[%emt 0:00:16]} Bc7 {[%emt 0:00:08]} 82. Bg2 {[%emt 0:00:14]} Bg3 {[%emt 0:00:08]} 83. Kf3 {[%emt 0:00:04]} Bc7 {[%emt 0:00:06]} 84. Kg4 {[%emt 0:00:07]} Bd6 {[%emt 0:00:06]} 85. Be4 {[%emt 0:00:07]} Bc7 {[%emt 0:00:06]} 86. Kh5 {[%emt 0:00:07]} h1=Q+ {[%emt 0:00:16]} 87. Bxh1 {[%emt 0:00:05]} Kxf5 {[%emt 0:00:04]} 88. Kh6 {[%emt 0:00:07]} Ke5 {[%emt 0:00:15]} 89. Kg7 {[%emt 0:00:03]} Kd4 {[%emt 0:00:12]} 90. Kf7 {[%emt 0:00:06]} Bh2 {[%emt 0:00:05]} 91. Ke6 {[%emt 0:00:04]} Bg3 {[%emt 0:00:04]} 92. Bd5 {[%emt 0:00:06]} Bh2 {[%emt 0:00:30]} 93. Kd7 {[%emt 0:00:05]} Kxd5 {[%emt 0:00:14]} 94. c7 {[%emt 0:00:03]} Bxc7 {[%emt 0:00:05]} 1/2-1/2

[Event "EYCC G10-ch 2024"]
[Site "Prague"]
[Date "2024.08.30"]
[Round "8.9"]
[White "Karabas, Beren Nisa"]
[Black "Nguyen Doan, Bao Anh Angelina"]
[Result "1-0"]
[ECO "A57"]
[WhiteElo "1494"]
[BlackElo "1659"]
[Annotator "NA RC"]
[PlyCount "113"]
[EventDate "2024.08.19"]
[EventType "swiss"]
[EventCountry "CZE"]
[SourceTitle "playchess.com"]
[Source "ChessBase"]
[SourceQuality "1"]
[TimeControl "5400+30"]

1. d4 {[%emt 0:00:01]} Nf6 {[%emt 0:00:08]} 2. c4 {[%emt 0:00:11]} c5 {[%emt 0:00:11]} 3. d5 {[%emt 0:00:06]} b5 {[%emt 0:00:08]} 4. cxb5 {[%emt 0:00:06]} a6 {[%emt 0:00:03]} 5. b6 {[%emt 0:00:05]} Qxb6 {[%emt 0:00:06]} 6. Nc3 {[%emt 0:00:25]} g6 {[%emt 0:00:39]} 7. Nf3 {[%emt 0:00:23]} Bg7 {[%emt 0:00:50]} 8. e4 {[%emt 0:01:27]} d6 {[%emt 0:00:28]} 9. Nd2 {[%emt 0:00:13]} Nbd7 {[%emt 0:02:19]} 10. Nc4 {[%emt 0:00:11]} Qb8 {[%emt 0:02:05]} 11. a4 {[%emt 0:05:47]} a5 {[%emt 0:04:23]} 12. Na3 {[%emt 0:07:57]} O-O {[%emt 0:03:07]} 13. Bb5 {[%emt 0:01:17]} Bb7 {[%emt 0:05:42]} 14. O-O {[%emt 0:03:53]} Qc7 {[%emt 0:02:13]} 15. Be3 {[%emt 0:04:54]} e6 {[%emt 0:03:48]} 16. Be2 {[%emt 0:05:26]} exd5 {[%emt 0:09:01]} 17. exd5 {[%emt 0:00:48]} Nb6 {[%emt 0:06:10]} 18. Bf3 {[%emt 0:02:54]} Ba6 {[%emt 0:03:10]} 19. Nab5 {[%emt 0:02:17]} Qd7 {[%emt 0:04:48]} 20. Qb3 {[%emt 0:15:53]} Rfe8 {[%emt 0:06:43]} 21. Bf4 {[%emt 0:05:57]} Nc8 22. Rfe1 {[%emt 0:03:08]} Rb8 {[%emt 0:06:28]} 23. Qc2 {[%emt 0:04:03]} Rb6 {[%emt 0:05:00]} 24. Qd2 {[%emt 0:06:58]} Na7 {[%emt 0:03:18]} 25. Be2 {[%emt 0:11:06]} Nc8 {[%emt 0:07:43]} 26. Bh6 {[%emt 0:02:05]} Bxh6 {[%emt 0:03:56]} 27. Qxh6 {[%emt 0:00:35]} Re5 {[%emt 0:04:37]} 28. Qd2 {[%emt 0:04:42]} Bb7 {[%emt 0:03:04]} 29. f4 {[%emt 0:03:57]} Re8 {[%emt 0:00:53]} 30. Na3 {[%emt 0:01:49]} Ne7 {[%emt 0:03:29]} 31. Bb5 {[%emt 0:00:37]} Rxb5 {[%emt 0:01:58]} 32. Naxb5 {[%emt 0:00:21]} Nfxd5 {[%emt 0:02:12]} 33. Ne4 {[%emt 0:01:15]} Qg4 {[%emt 0:02:32]} 34. Nc7 {[%emt 0:00:54]} Rb8 {[%emt 0:01:52]} 35. Nxd5 {[%emt 0:00:10]} Nxd5 {[%emt 0:00:31]} 36. Qxd5 {[%emt 0:00:34]} Bxd5 {[%emt 0:00:51]} 37. Nf6+ {[%emt 0:00:08]} Kf8 {[%emt 0:00:19]} 38. Nxg4 {[%emt 0:00:06]} Rxb2 {[%emt 0:00:09]} 39. Ne3 {[%emt 0:01:20]} Be4 {[%emt 0:00:51]} 40. Rad1 {[%emt 0:01:27]} Ra2 {[%emt 0:01:06]} 41. Rxd6 {[%emt 0:00:35]} Rxa4 {[%emt 0:00:15]} 42. Rd8+ {[%emt 0:00:18]} Ke7 {[%emt 0:00:23]} 43. Rc8 {[%emt 0:00:09]} f5 {[%emt 0:00:35]} 44. Rxc5 {[%emt 0:00:21]} Ra2 {[%emt 0:00:28]} 45. g4 {[%emt 0:02:03]} Kf6 {[%emt 0:00:46]} 46. gxf5 {[%emt 0:00:46]} gxf5 {[%emt 0:00:08]} 47. Ng4+ {[%emt 0:00:35]} Kg6 {[%emt 0:00:50]} 48. Nf2 {[%emt 0:00:28]} Bf3 {[%emt 0:00:18]} 49. Rc3 {[%emt 0:00:13]} Ba8 {[%emt 0:00:22]} 50. h3 {[%emt 0:00:33]} a4 {[%emt 0:00:28]} 51. Re6+ {[%emt 0:00:19]} Kf7 {[%emt 0:00:13]} 52. Ra6 {[%emt 0:00:36]} Bd5 {[%emt 0:00:30]} 53. Rc7+ {[%emt 0:00:15]} Ke8 {[%emt 0:00:05]} 54. Rb6 {[%emt 0:00:27]} Kd8 {[%emt 0:00:11]} 55. Rxh7 {[%emt 0:00:09]} Kc8 {[%emt 0:00:08]} 56. Rf6 {[%emt 0:00:18]} Ra1+ {[%emt 0:00:14]} 57. Kh2 1-0

[Event "EYCC G10-ch 2024"]
[Site "Prague"]
[Date "2024.08.30"]
[Round "8.10"]
[White "Kiryttopoulou, Eleonora Kaisa"]
[Black "Wang, Yi Xuan"]
[Result "0-1"]
[ECO "B27"]
[WhiteElo "1525"]
[BlackElo "1734"]
[Annotator "NA RC"]
[PlyCount "96"]
[EventDate "2024.08.19"]
[EventType "swiss"]
[EventCountry "CZE"]
[SourceTitle "playchess.com"]
[Source "ChessBase"]
[SourceQuality "1"]
[TimeControl "5400+30"]

1. e4 {[%emt 0:00:03]} c5 {[%emt 0:00:07]} 2. Nf3 {[%emt 0:00:08]} g6 {[%emt 0:00:11]} 3. c3 {[%emt 0:00:48]} Bg7 {[%emt 0:00:10]} 4. d4 {[%emt 0:00:23]} cxd4 {[%emt 0:00:09]} 5. cxd4 {[%emt 0:00:06]} d5 {[%emt 0:00:10]} 6. e5 {[%emt 0:03:17]} a6 {[%emt 0:00:11]} 7. h3 {[%emt 0:00:48]} f6 {[%emt 0:02:44]} 8. Nc3 {[%emt 0:04:12]} Nc6 {[%emt 0:00:53]} 9. exf6 {[%emt 0:02:10]} Nxf6 {[%emt 0:00:19]} 10. Be2 {[%emt 0:03:55]} O-O {[%emt 0:05:52]} 11. O-O {[%emt 0:00:10]} Nh5 {[%emt 0:02:52]} 12. Ne5 {[%emt 0:02:33]} Nf4 {[%emt 0:04:12]} 13. Nxc6 {[%emt 0:02:15]} bxc6 {[%emt 0:01:42]} 14. Be3 {[%emt 0:02:30]} Rb8 {[%emt 0:03:20]} 15. Qc2 {[%emt 0:03:06]} Bf5 {[%emt 0:15:57]} 16. Qd2 {[%emt 0:01:35]} Nxe2+ {[%emt 0:03:38]} 17. Qxe2 {[%emt 0:01:12]} a5 {[%emt 0:02:25]} 18. a3 {[%emt 0:02:43]} Qe8 {[%emt 0:06:46]} 19. Rfe1 {[%emt 0:03:26]} Qf7 {[%emt 0:04:12]} 20. Na4 {[%emt 0:08:55]} Rb5 {[%emt 0:04:49]} 21. Rac1 {[%emt 0:03:41]} Bd7 {[%emt 0:05:41]} 22. Rc5 {[%emt 0:05:07]} Rxc5 {[%emt 0:03:31]} 23. Nxc5 {[%emt 0:00:14]} Bc8 {[%emt 0:01:29]} 24. Qd2 {[%emt 0:01:11]} e5 {[%emt 0:06:05]} 25. dxe5 {[%emt 0:03:02]} Bxe5 {[%emt 0:02:40]} 26. b3 {[%emt 0:02:17]} Qf6 {[%emt 0:01:38]} 27. Bg5 {[%emt 0:10:56]} Bc3 {[%emt 0:08:21]} 28. Qe3 {[%emt 0:02:44]} Qd4 {[%emt 0:00:17]} 29. Bh6 {[%emt 0:03:37]} Qxe3 {[%emt 0:02:27]} 30. Rxe3 {[%emt 0:01:19]} Bd4 {[%emt 0:00:26]} 31. Bxf8 {[%emt 0:01:35]} Bxe3 {[%emt 0:00:07]} 32. Bd6 {[%emt 0:00:30]} Bc1 {[%emt 0:01:17]} 33. Nd3 {[%emt 0:00:51]} Bd2 {[%emt 0:00:45]} 34. Kf1 {[%emt 0:01:04]} Ba6 {[%emt 0:01:49]} 35. Ke2 {[%emt 0:00:09]} Bc3 {[%emt 0:00:37]} 36. Ke3 {[%emt 0:01:15]} Kf7 {[%emt 0:01:00]} 37. Ne5+ {[%emt 0:00:32]} Ke6 {[%emt 0:00:12]} 38. Nxc6 {[%emt 0:04:54]} Kxd6 {[%emt 0:00:09]} 39. Nd4 {[%emt 0:00:07]} Bb2 {[%emt 0:00:54]} 40. a4 {[%emt 0:02:39]} Bf1 {[%emt 0:00:15]} 41. g3 {[%emt 0:02:04]} Bxh3 {[%emt 0:00:11]} 42. Nc2 {[%emt 0:00:17]} Bf5 {[%emt 0:01:20]} 43. Nd4 {[%emt 0:00:26]} Bxd4+ {[%emt 0:00:21]} 44. Kxd4 {[%emt 0:00:09]} Be4 {[%emt 0:00:14]} 45. f4 {[%emt 0:00:24]} h5 {[%emt 0:00:11]} 46. Kc3 {[%emt 0:00:59]} Kc5 {[%emt 0:00:16]} 47. b4+ {[%emt 0:00:48]} axb4+ {[%emt 0:00:08]} 48. Kb3 {[%emt 0:00:06]} d4 0-1

[Event "EYCC G10-ch 2024"]
[Site "Prague"]
[Date "2024.08.30"]
[Round "8.11"]
[White "Kocherha, Yelizavieta"]
[Black "Serradell Munoz, Silvia"]
[Result "0-1"]
[ECO "B21"]
[WhiteElo "1519"]
[BlackElo "1619"]
[Annotator "NA RC"]
[PlyCount "104"]
[EventDate "2024.08.19"]
[EventType "swiss"]
[EventCountry "CZE"]
[SourceTitle "playchess.com"]
[Source "ChessBase"]
[SourceQuality "1"]
[TimeControl "5400+30"]

1. e4 {[%emt 0:00:04]} c5 {[%emt 0:00:15]} 2. d4 {[%emt 0:00:25]} cxd4 {[%emt 0:00:24]} 3. c3 {[%emt 0:00:35]} d3 {[%emt 0:00:26]} 4. Bxd3 {[%emt 0:01:31]} g6 {[%emt 0:00:52]} 5. Nf3 {[%emt 0:01:04]} Bg7 {[%emt 0:02:22]} 6. O-O {[%emt 0:00:54]} Nc6 {[%emt 0:00:55]} 7. Be3 {[%emt 0:02:36]} Nf6 {[%emt 0:01:34]} 8. Qd2 {[%emt 0:03:44]} Ng4 {[%emt 0:02:42]} 9. Bc4 Nxe3 10. fxe3 {[%emt 0:02:20]} O-O {[%emt 0:02:52]} 11. Qf2 {[%emt 0:01:38]} e6 {[%emt 0:02:22]} 12. Nbd2 {[%emt 0:01:18]} Na5 {[%emt 0:02:09]} 13. Rad1 {[%emt 0:01:03]} Nxc4 {[%emt 0:00:49]} 14. Nxc4 {[%emt 0:00:36]} Qc7 {[%emt 0:00:27]} 15. Nd6 {[%emt 0:00:45]} Qd8 {[%emt 0:03:56]} 16. Qg3 {[%emt 0:03:36]} Qe7 {[%emt 0:03:01]} 17. e5 {[%emt 0:01:48]} f6 {[%emt 0:02:09]} 18. exf6 {[%emt 0:01:21]} Bxf6 {[%emt 0:01:24]} 19. Ne5 {[%emt 0:06:26]} Qg7 {[%emt 0:02:16]} 20. Nec4 {[%emt 0:01:21]} b6 {[%emt 0:01:54]} 21. a4 {[%emt 0:01:46]} Ba6 {[%emt 0:01:21]} 22. Rf4 {[%emt 0:03:11]} Bxc4 {[%emt 0:02:11]} 23. Nxc4 {[%emt 0:00:48]} d5 {[%emt 0:00:15]} 24. Nd2 {[%emt 0:04:23]} Rfe8 {[%emt 0:00:51]} 25. Nf3 {[%emt 0:03:02]} Be7 {[%emt 0:03:49]} 26. Ne5 {[%emt 0:11:02]} Bd6 {[%emt 0:00:34]} 27. Ng4 {[%emt 0:10:37]} Bxf4 {[%emt 0:01:52]} 28. Qxf4 {[%emt 0:00:21]} Rad8 {[%emt 0:03:25]} 29. Nf6+ {[%emt 0:01:28]} Kh8 {[%emt 0:00:33]} 30. Nxe8 {[%emt 0:00:24]} Rxe8 {[%emt 0:00:04]} 31. Rf1 {[%emt 0:01:01]} Kg8 {[%emt 0:00:58]} 32. Qd6 {[%emt 0:02:15]} Qh6 {[%emt 0:02:21]} 33. Rf3 {[%emt 0:00:42]} Qh4 {[%emt 0:01:43]} 34. Qf4 {[%emt 0:01:25]} Qxf4 {[%emt 0:02:44]} 35. Rxf4 {[%emt 0:00:33]} Rf8 {[%emt 0:00:41]} 36. Rxf8+ {[%emt 0:00:16]} Kxf8 {[%emt 0:00:02]} 37. Kf2 {[%emt 0:00:32]} Kf7 {[%emt 0:00:12]} 38. Kf3 {[%emt 0:01:14]} Kf6 {[%emt 0:00:20]} 39. h4 {[%emt 0:00:55]} Ke5 {[%emt 0:01:10]} 40. g4 {[%emt 0:00:37]} h6 {[%emt 0:00:50]} 41. b4 {[%emt 0:04:33]} a6 {[%emt 0:00:17]} 42. Kf2 {[%emt 0:00:55]} Ke4 {[%emt 0:00:09]} 43. Ke2 {[%emt 0:00:26]} e5 {[%emt 0:00:14]} 44. h5 {[%emt 0:01:37]} g5 {[%emt 0:00:07]} 45. Kf2 {[%emt 0:02:03]} Kd3 {[%emt 0:00:04]} 46. Kf3 {[%emt 0:00:48]} e4+ {[%emt 0:00:15]} 47. Kf2 {[%emt 0:00:25]} Kd2 {[%emt 0:00:07]} 48. Kf1 {[%emt 0:01:21]} Kxe3 {[%emt 0:00:05]} 49. Ke1 {[%emt 0:00:18]} Kd3 {[%emt 0:00:22]} 50. b5 {[%emt 0:00:46]} a5 {[%emt 0:00:02]} 51. Kd1 {[%emt 0:00:42]} e3 {[%emt 0:00:07]} 52. Ke1 {[%emt 0:00:16]} e2 {[%emt 0:00:08]} 0-1

[Event "EYCC G10-ch 2024"]
[Site "Prague"]
[Date "2024.08.30"]
[Round "8.12"]
[White "Isakhanyan, Nare"]
[Black "Horodna, Anna"]
[Result "0-1"]
[ECO "D32"]
[WhiteElo "1512"]
[BlackElo "1603"]
[Annotator "NA RC"]
[PlyCount "44"]
[EventDate "2024.08.19"]
[EventType "swiss"]
[EventCountry "CZE"]
[SourceTitle "playchess.com"]
[Source "ChessBase"]
[SourceQuality "1"]
[TimeControl "5400+30"]

1. d4 {[%emt 0:00:03]} d5 {[%emt 0:00:12]} 2. c4 {[%emt 0:00:04]} e6 {[%emt 0:00:34]} 3. Nc3 {[%emt 0:00:06]} c5 {[%emt 0:00:47]} 4. cxd5 {[%emt 0:01:55]} cxd4 {[%emt 0:00:56]} 5. Qxd4 {[%emt 0:01:18]} Nc6 {[%emt 0:00:52]} 6. Qd1 {[%emt 0:03:26]} exd5 {[%emt 0:01:24]} 7. Qxd5 {[%emt 0:06:50]} Bd7 {[%emt 0:02:03]} 8. a3 {[%emt 0:04:43]} Nf6 {[%emt 0:00:56]} 9. Qd1 {[%emt 0:01:34]} Bc5 {[%emt 0:07:01]} 10. e3 {[%emt 0:02:42]} Qe7 {[%emt 0:00:56]} 11. b4 {[%emt 0:01:34]} Bb6 {[%emt 0:05:53]} 12. Nf3 {[%emt 0:04:46]} O-O-O {[%emt 0:02:00]} 13. Qb3 {[%emt 0:08:53]} g5 {[%emt 0:02:44]} 14. Be2 {[%emt 0:08:04]} Rhg8 {[%emt 0:01:52]} 15. O-O {[%emt 0:01:08]} g4 {[%emt 0:01:26]} 16. Nd2 {[%emt 0:01:34]} g3 {[%emt 0:05:55]} 17. hxg3 {[%emt 0:12:54]} Rxg3 {[%emt 0:00:19]} 18. Bf3 {[%emt 0:27:31]} Ng4 {[%emt 0:06:30]} 19. Bxg4 {[%emt 0:06:30]} Rxg4 {[%emt 0:00:40]} 20. g3 {[%emt 0:04:07]} Bxe3 {[%emt 0:01:02]} 21. Nd5 {[%emt 0:00:44]} Rxg3+ {[%emt 0:00:16]} 22. Kh2 {[%emt 0:00:09]} Qh4# {[%emt 0:00:06]} 0-1